bitfinex/quotes_ETHUSD_20250824
["timestamp","ask_amount","ask_price","bid_price","bid_amount"]
[1756016049578,0.104,4790.6,4790.5,2.08743666]
[1756016049793,3.579,4790.6,4790.5,2.08743666]
[1756016051897,3.579,4790.6,4790.5,2.08843666]
[1756016054183,3.579,4790.6,4790.5,0.001]
[1756016055705,3.8672,4790.6,4790.5,0.001]
[1756016055903,5.68379857,4790.6,4790.5,0.001]
[1756016056200,6.31137057,4790.6,4790.5,0.001]
[1756016056900,5.58667057,4790.6,4790.5,0.001]
[1756016057198,4.643072,4790.6,4790.5,0.001]
[1756016058769,0.731572,4790.6,4790.5,0.001]
[1756016058965,3.579,4790.6,4790.5,0.001]
[1756016059871,7.3423,4790.6,4790.5,0.001]
[1756016060066,15.50143898,4790.6,4790.5,0.001]
[1756016060366,17.27483128,4790.6,4790.5,0.001]
[1756016060908,17.35851228,4790.6,4790.5,0.001]
[1756016061109,19.44593347,4790.6,4790.5,0.001]
[1756016061491,19.89522198,4790.6,4790.5,0.001]
[1756016061806,17.80780079,4790.6,4790.5,0.001]
[1756016063606,18.13447168,4790.6,4790.5,0.001]
[1756016066106,20.22189287,4790.6,4790.5,0.001]
[1756016069473,20.22389287,4790.6,4790.5,0.001]
[1756016069708,20.41876736,4790.6,4790.5,0.001]
[1756016070195,20.09209647,4790.6,4790.5,0.001]
[1756016071290,19.89722198,4790.6,4790.5,0.001]
[1756016071699,20.09205598,4790.6,4790.5,0.001]
[1756016072408,19.89722198,4790.6,4790.5,0.001]
[1756016073579,20.22391126,4790.6,4790.5,0.001]
[1756016074981,20.41874086,4790.6,4790.5,0.001]
[1756016075181,20.4187417,4790.6,4790.5,0.001]
[1756016075613,20.41874864,4790.6,4790.5,0.001]
[1756016080317,21.07874864,4790.6,4790.5,0.001]
[1756016085225,21.15328563,4790.6,4790.5,0.001]
[1756016085721,25.03976443,4790.6,4790.5,0.001]
[1756016085923,14.69703315,4790.6,4790.5,0.001]
[1756016086121,14.80103315,4790.6,4790.5,0.001]
[1756016086337,16.88845434,4790.6,4790.5,0.001]
[1756016086495,17.65175434,4790.6,4790.5,0.001]
[1756016088994,15.56433315,4790.6,4790.5,0.001]
[1756016089993,15.25713315,4790.6,4790.5,0.001]
[1756016090849,17.34455434,4790.6,4790.5,0.001]
[1756016090997,17.63205434,4790.6,4790.5,0.001]
[1756016091336,15.54463315,4790.6,4790.5,0.001]
[1756016091509,17.30536506,4790.6,4790.5,0.001]
[1756016093434,18.52432412,4790.6,4790.5,0.001]
[1756016094524,17.96536506,4790.6,4790.5,0.001]
[1756016094920,18.29207887,4790.6,4790.5,0.001]
[1756016095120,18.29227593,4790.6,4790.5,0.001]
[1756016095944,18.48745766,4790.6,4790.5,0.001]
[1756016098144,18.48790051,4790.6,4790.5,0.001]
[1756016099950,17.74430051,4790.6,4790.5,0.001]
[1756016100112,18.47440051,4790.6,4790.5,0.001]
[1756016100312,14.99687932,4790.6,4790.5,0.001]
[1756016101156,14.80169759,4790.6,4790.5,0.001]
[1756016101363,11.52090319,4790.6,4790.5,0.001]
[1756016101522,14.99690319,4790.6,4790.5,0.001]
[1756016102156,14.60652616,4790.6,4790.5,0.001]
[1756016102461,14.27981235,4790.6,4790.5,0.001]
[1756016102753,14.19613135,4790.6,4790.5,0.001]
[1756016103454,7.10613136,4790.6,4790.5,0.001]
[1756016104328,3.63013136,4790.6,4790.5,0.001]
[1756016104551,7.10713136,4790.6,4790.5,0.001]
[1756016104853,7.10713136,4790.6,4790.5,2.29732327]
[1756016104854,0.1804,4790.6,4790.5,2.29732327]
[1756016105442,0.1804,4790.6,4790.5,0.2098585]
[1756016105628,3.6574,4790.6,4790.5,0.001]
[1756016106117,17.63406017,4790.6,4790.5,0.001]
[1756016106318,15.99625373,4790.6,4790.5,0.001]
[1756016106574,17.68593273,4790.6,4790.5,0.001]
[1756016106920,19.77335392,4790.6,4790.5,0.001]
[1756016109061,17.68593273,4790.6,4790.5,0.001]
[1756016110046,19.77335392,4790.6,4790.5,0.001]
[1756016110232,17.68593273,4790.6,4790.5,0.001]
[1756016112056,19.77335392,4790.6,4790.5,0.001]
[1756016116356,19.96856993,4790.6,4790.5,0.001]
[1756016117795,5.51490976,4790.6,4790.5,0.001]
[1756016117983,8.99190976,4790.6,4790.5,0.001]
[1756016118891,8.99090976,4790.6,4790.5,0.001]
[1756016119988,9.44020976,4790.6,4790.5,0.001]
[1756016120189,11.83963095,4790.6,4790.5,0.001]
[1756016120912,9.75220976,4790.6,4790.5,0.001]
[1756016121592,5.31969375,4790.6,4790.5,0.001]
[1756016121795,8.79569375,4790.6,4790.5,0.001]
[1756016123799,0.71369375,4790.6,4790.5,2.08846477]
[1756016123999,0.0764,4790.6,4790.5,2.08846477]
[1756016124174,0.0764,4790.6,4790.5,3.32198663]
[1756016126799,0.0764,4790.6,4790.5,1.23452186]
[1756016127014,0.0764,4790.6,4790.5,0.001]
[1756016127304,0.0764,4790.6,4790.5,2.08846477]
[1756016127674,0.0764,4790.6,4790.5,0.001]
[1756016131216,0.8377,4790.6,4790.5,0.001]
[1756016133311,3.8377,4790.6,4790.5,0.001]
[1756016133543,6.56955537,4790.6,4790.5,0.001]
[1756016133740,6.45819663,4790.6,4790.5,0.001]
[1756016134039,6.56219663,4790.6,4790.5,0.001]
[1756016134410,6.75723046,4790.6,4790.5,0.001]
[1756016134837,7.41723046,4790.6,4790.5,0.001]
[1756016135836,7.74394283,4790.6,4790.5,0.001]
[1756016137522,7.548909,4790.6,4790.5,0.001]
[1756016138244,15.70804798,4790.6,4790.5,0.001]
[1756016138445,19.18604798,4790.6,4790.5,0.001]
[1756016138939,11.026909,4790.6,4790.5,0.001]
[1756016139241,20.71619528,4790.6,4790.5,0.001]
[1756016140860,7.9697563,4790.6,4790.5,0.001]
[1756016141039,11.8970563,4790.6,4790.5,0.001]
[1756016141219,12.5570563,4790.6,4790.5,0.001]
[1756016141416,12.75202862,4790.6,4790.5,0.001]
[1756016142331,12.75204366,4790.6,4790.5,0.001]
[1756016143351,12.5570563,4790.6,4790.5,0.001]
[1756016144344,8.6297563,4790.6,4790.5,0.001]
[1756016144551,11.8980563,4790.6,4790.5,0.001]
[1756016145158,8.4190563,4790.6,4790.5,0.001]
[1756016145342,11.8980563,4790.6,4790.5,0.001]
[1756016146358,11.57134393,4790.6,4790.5,0.001]
[1756016147465,19.73048291,4790.6,4790.5,0.001]
[1756016149662,20.0571961,4790.6,4790.5,0.001]
[1756016149828,19.73048291,4790.6,4790.5,0.001]
[1756016150257,19.73048291,4790.6,4790.0,0.001]
[1756016150258,2.0875861,4790.3,4790.0,0.001]
[1756016150455,3.0,4790.1,4790.0,0.001]
[1756016150839,4.27565635,4790.1,4790.0,0.001]
[1756016151764,4.58585635,4790.1,4790.0,0.001]
[1756016151961,3.8466,4790.1,4790.0,0.001]
[1756016152167,5.4526,4790.1,4790.0,0.001]
[1756016152665,5.1424,4790.1,4790.0,0.001]
[1756016152963,5.4526,4790.1,4790.0,0.001]
[1756016153939,5.1424,4790.1,4790.0,0.001]
[1756016154139,4.71,4790.1,4790.0,0.001]
[1756016154335,1.71,4790.1,4790.0,0.001]
[1756016154534,8.188,4790.1,4790.0,0.001]
[1756016157168,8.9306,4790.1,4790.0,0.001]
[1756016157376,8.6204,4790.1,4790.0,0.001]
[1756016159661,8.9306,4790.1,4790.0,0.001]
[1756016160262,9.3802344,4790.1,4790.0,0.001]
[1756016160664,9.0700344,4790.1,4790.0,0.001]
[1756016162366,8.6356344,4790.1,4790.0,0.001]
[1756016164951,9.0680344,4790.1,4790.0,0.001]
[1756016166561,8.6356344,4790.1,4790.0,0.001]
[1756016167071,9.0680344,4790.1,4790.0,0.001]
[1756016167270,10.56565926,4790.1,4790.0,0.001]
[1756016167765,12.65329834,4790.1,4790.0,0.001]
[1756016167962,12.93243016,4790.1,4790.0,0.001]
[1756016168671,13.70965152,4790.1,4790.0,0.001]
[1756016169073,14.03641703,4790.1,4790.0,0.001]
[1756016169278,13.91919567,4790.1,4790.0,0.001]
[1756016169478,13.72375485,4790.1,4790.0,0.001]
[1756016169681,13.91894689,4790.1,4790.0,0.001]
[1756016169879,14.03606212,4790.1,4790.0,0.001]
[1756016170069,13.91894689,4790.1,4790.0,0.001]
[1756016172487,15.15864234,4790.1,4790.0,0.001]
[1756016172870,14.9634454,4790.1,4790.0,0.001]
[1756016173194,15.1583974,4790.1,4790.0,0.001]
[1756016173375,13.84072604,4790.1,4790.0,0.001]
[1756016173558,14.03554235,4790.1,4790.0,0.001]
[1756016174375,10.55954235,4790.1,4790.0,0.001]
[1756016174573,22.19768133,4790.1,4790.0,0.001]
[1756016175281,22.08071014,4790.1,4790.0,0.001]
[1756016176067,18.60171014,4790.1,4790.0,0.001]
[1756016176272,22.08071014,4790.1,4790.0,0.001]
[1756016176471,22.82836491,4790.1,4790.0,0.001]
[1756016176668,13.49017116,4790.1,4790.0,0.001]
[1756016176873,13.92257116,4790.1,4790.0,0.001]
[1756016177596,14.67022593,4790.1,4790.0,0.001]
[1756016178696,13.92257116,4790.1,4790.0,0.001]
[1756016182785,13.86724739,4790.1,4790.0,0.001]
[1756016182977,13.67243108,4790.1,4790.0,0.001]
[1756016183175,13.86713113,4790.1,4790.0,0.001]
[1756016183404,20.95713112,4790.1,4790.0,0.001]
[1756016183598,20.95713154,4790.1,4790.0,0.001]
[1756016184272,21.70478631,4790.1,4790.0,0.001]
[1756016185793,22.96078631,4790.1,4790.0,0.001]
[1756016186180,22.32996161,4790.1,4790.0,1e-08]
[1756016186777,22.0031961,4790.1,4790.0,1e-08]
[1756016187280,22.003196,4790.1,4790.0,1e-08]
[1756016189400,22.003196,4790.1,4789.8,0.001]
[1756016189401,7.00372625,4789.9,4789.8,0.001]
[1756016189695,20.66857879,4789.9,4789.8,0.001]
[1756016189900,21.22822558,4789.9,4789.8,0.001]
[1756016190103,21.31194258,4789.9,4789.8,0.001]
[1756016190701,20.05594258,4789.9,4789.8,0.001]
[1756016191311,20.05597605,4789.9,4789.8,0.001]
[1756016191908,21.31197605,4789.9,4789.8,0.001]
[1756016192115,20.05597605,4789.9,4789.8,0.001]
[1756016192316,20.38277646,4789.9,4789.8,0.001]
[1756016192909,20.18804262,4789.9,4789.8,0.001]
[1756016193233,58.72882537,4789.9,4789.8,1e-08]
[1756016193382,7.00385702,4789.6,4789.5,1e-08]
[1756016193710,26.02111776,4789.6,4789.5,1e-08]
[1756016194128,2.74794421,4789.4,4789.3,1e-08]
[1756016194290,19.71078009,4789.4,4789.3,1e-08]
[1756016194497,21.27553379,4789.4,4789.3,1e-08]
[1756016194702,21.35926679,4789.4,4789.3,1e-08]
[1756016194901,22.76808112,4789.4,4789.3,1e-08]
[1756016195338,21.64612742,4789.4,4789.3,1e-08]
[1756016196192,8.74398844,4789.4,4789.3,1e-08]
[1756016196418,14.53578842,4789.4,4789.3,1e-08]
[1756016196610,18.76498842,4789.4,4789.3,1e-08]
[1756016197188,19.42498842,4789.4,4789.3,1e-08]
[1756016199857,2.088075,4789.1,4789.0,1e-08]
[1756016200042,19.76268238,4789.1,4789.0,1e-08]
[1756016200241,20.16688238,4789.1,4789.0,1e-08]
[1756016200541,20.61068238,4789.1,4789.0,1e-08]
[1756016201224,21.23866538,4789.1,4789.0,1e-08]
[1756016201423,22.32064417,4789.1,4789.0,1e-08]
[1756016201921,23.57664417,4789.1,4789.0,1e-08]
[1756016202636,15.41750519,4789.1,4789.0,1e-08]
[1756016202806,23.90351832,4789.1,4789.0,1e-08]
[1756016203006,23.90328181,4789.1,4789.0,1e-08]
[1756016203234,1.916,4788.9,4788.8,1e-08]
[1756016203528,20.95373948,4788.9,4788.8,1e-08]
[1756016203752,21.39653948,4788.9,4788.8,1e-08]
[1756016204118,27.55747846,4788.9,4788.8,1e-08]
[1756016204325,28.40447846,4788.9,4788.8,1e-08]
[1756016205648,29.03248846,4788.9,4788.8,1e-08]
[1756016205848,29.03238817,4788.9,4788.8,1e-08]
[1756016206025,28.58958817,4788.9,4788.8,1e-08]
[1756016206225,29.22701794,4788.9,4788.8,1e-08]
[1756016207656,28.48481794,4788.9,4788.8,1e-08]
[1756016207823,28.78421794,4788.9,4788.8,1e-08]
[1756016208026,29.22701794,4788.9,4788.8,1e-08]
[1756016209342,29.36154555,4788.9,4788.8,1e-08]
[1756016209657,0.66,4788.3,4787.1,0.04]
[1756016209859,23.54321146,4788.2,4787.1,0.04]
[1756016210030,22.88805234,4788.2,4787.1,0.04]
[1756016210228,13.91608665,4788.2,4787.1,0.04]
[1756016210534,20.95439034,4788.2,4787.1,0.04]
[1756016211296,21.25209034,4788.2,4787.1,0.04]
[1756016211498,21.41909034,4788.2,4787.1,0.04]
[1756016211708,20.95439034,4788.2,4787.1,0.04]
[1756016211862,22.21039034,4788.2,4787.1,0.04]
[1756016212058,20.95439034,4788.2,4787.1,0.04]
[1756016212604,21.42509034,4788.2,4787.1,0.04]
[1756016212905,11.94642348,4788.2,4787.1,0.04]
[1756016213086,12.92858649,4788.2,4787.1,0.04]
[1756016213270,13.58858265,4788.2,4787.1,0.04]
[1756016213597,13.5886207,4788.2,4787.1,0.04]
[1756016213895,14.3510207,4788.2,4787.1,0.04]
[1756016215500,14.0533207,4788.2,4787.1,0.041]
[1756016215897,13.5886207,4788.2,4787.1,0.041]
[1756016216306,11.27624236,4788.2,4787.1,0.041]
[1756016216472,12.02387246,4788.2,4788.1,0.041]
[1756016216803,20.18301144,4788.2,4788.1,0.041]
[1756016217297,19.43538134,4788.2,4788.1,0.041]
[1756016217813,20.51002411,4788.2,4788.1,0.041]
[1756016218189,21.46772411,4788.2,4788.1,0.041]
[1756016218400,21.3015489,4788.2,4788.1,0.041]
[1756016219210,20.97462718,4788.2,4788.1,0.041]
[1756016219612,21.07942718,4788.2,4788.1,0.041]
[1756016221011,22.20030784,4788.2,4788.1,0.041]
[1756016221179,21.07947255,4788.2,4788.1,0.041]
[1756016221380,9.41733357,4788.2,4788.1,1e-08]
[1756016221580,21.09047255,4788.2,4788.1,1e-08]
[1756016221912,21.09101141,4788.2,4788.1,1e-08]
[1756016222319,21.09106329,4788.2,4788.1,1e-08]
[1756016222523,21.41802522,4788.2,4788.1,1e-08]
[1756016224495,17.90402522,4788.2,4788.1,1e-08]
[1756016224824,20.65362522,4788.2,4788.1,1e-08]
[1756016225128,21.41598242,4788.2,4788.1,1e-08]
[1756016225423,21.41598242,4788.2,4787.6,0.001]
[1756016225424,2.74859834,4787.9,4787.6,0.001]
[1756016225720,18.77750833,4787.9,4787.6,0.001]
[1756016226144,24.34795433,4787.9,4787.6,0.001]
[1756016227102,20.07355433,4787.9,4787.6,0.001]
[1756016227297,23.58655433,4787.9,4787.6,0.001]
[1756016227724,23.58555433,4787.9,4787.6,0.001]
[1756016227917,20.07355433,4787.9,4787.6,0.001]
[1756016228117,23.58555433,4787.9,4787.6,0.001]
[1756016228423,24.70791123,4787.9,4787.6,0.001]
[1756016230114,21.19591123,4787.9,4787.6,0.001]
[1756016230321,25.17161123,4787.9,4787.6,0.001]
[1756016230636,32.26161121,4787.9,4787.6,0.001]
[1756016230834,32.26161121,4787.9,4787.8,1e-08]
[1756016230835,31.43695431,4787.9,4787.8,1e-08]
[1756016231618,31.43726004,4787.9,4787.8,1e-08]
[1756016232259,31.43726421,4787.9,4787.8,1e-08]
[1756016233270,31.43726421,4787.9,4787.8,0.00100001]
[1756016234159,32.97249127,4787.9,4787.8,1e-08]
[1756016234716,3.66,4787.8,4787.6,1e-08]
[1756016234949,10.5119665,4787.7,4787.6,1e-08]
[1756016235150,10.9766665,4787.7,4787.6,1e-08]
[1756016235358,11.0604245,4787.7,4787.6,1e-08]
[1756016235558,19.40642448,4787.7,4787.6,1e-08]
[1756016235754,19.73339518,4787.7,4787.6,1e-08]
[1756016235934,19.73339518,4787.7,4787.1,0.041]
[1756016235935,2.74890374,4787.2,4787.1,0.041]
[1756016236143,19.98062363,4787.2,4787.1,0.041]
[1756016236323,20.08542363,4787.2,4787.1,0.041]
[1756016236524,20.16918663,4787.2,4787.1,0.041]
[1756016236751,20.63388663,4787.2,4787.1,0.041]
[1756016236953,20.63388663,4787.2,4786.1,0.04]
[1756016236954,3.0,4787.1,4786.1,0.04]
[1756016237154,13.99716878,4786.2,4786.1,0.04]
[1756016237361,20.92603366,4786.2,4786.1,0.04]
[1756016237562,21.67472328,4786.2,4786.1,0.04]
[1756016237758,21.75849628,4786.2,4786.1,0.04]
[1756016238256,22.43220666,4786.2,4786.1,0.04]
[1756016238458,22.87612024,4786.2,4786.1,0.04]
[1756016238857,22.54908051,4786.2,4786.1,0.04]
[1756016239266,22.43220666,4786.2,4786.1,0.04]
[1756016240137,14.27306768,4786.2,4786.1,0.04]
[1756016240371,23.17963346,4786.2,4786.1,0.04]
[1756016240966,22.41723346,4786.2,4786.1,0.04]
[1756016241385,21.66980666,4786.2,4786.1,0.04]
[1756016241737,21.66900427,4786.2,4786.1,0.04]
[1756016241934,22.92500427,4786.2,4786.1,0.04]
[1756016242238,21.66900427,4786.2,4786.1,0.04]
[1756016242448,21.99605034,4786.2,4786.1,0.04]
[1756016242647,11.45496386,4786.2,4786.1,0.04]
[1756016242846,12.01510487,4786.2,4786.1,0.04]
[1756016244441,6.17106941,4786.2,4786.1,0.04]
[1756016244749,5.97651497,4786.2,4786.1,0.04]
[1756016244949,8.97651497,4786.2,4786.1,0.04]
[1756016245554,11.06585515,4786.2,4786.1,0.04]
[1756016247148,11.17065515,4786.2,4786.1,0.04]
[1756016247646,11.47485515,4786.2,4786.1,0.04]
[1756016247847,12.12404676,4786.2,4786.1,0.04]
[1756016248047,12.12404847,4786.2,4786.1,0.04]
[1756016248765,12.78404847,4786.2,4786.1,0.04]
[1756016248986,12.97855363,4786.2,4786.1,0.04]
[1756016249145,12.65150756,4786.2,4786.1,0.04]
[1756016249978,13.21164857,4786.2,4786.1,0.041]
[1756016251552,12.82265009,4786.2,4786.1,0.041]
[1756016251788,12.45275957,4786.2,4786.1,0.041]
[1756016251955,8.28275957,4786.2,4786.1,0.041]
[1756016252156,10.84560908,4786.2,4786.1,0.041]
[1756016252358,5.57130784,4786.2,4786.1,0.041]
[1756016252577,6.08330784,4786.2,4786.1,0.041]
[1756016252900,11.17264802,4786.2,4786.1,0.041]
[1756016254089,9.08330784,4786.2,4786.1,0.041]
[1756016254596,5.63461194,4786.2,4786.1,0.041]
[1756016259483,6.08333966,4786.2,4786.1,0.041]
[1756016262509,5.75630072,4786.2,4786.1,0.041]
[1756016263805,2.24430072,4786.2,4786.1,0.041]
[1756016264002,5.302573,4786.2,4786.1,0.041]
[1756016264203,1.795573,4786.2,4786.1,0.041]
[1756016264405,5.2208,4786.2,4786.1,2.13038384]
[1756016264607,5.2208,4786.2,4786.1,2.34542222]
[1756016265185,0.1048,4786.2,4786.1,2.34542222]
[1756016266679,3.6138,4786.2,4786.1,2.34542222]
[1756016267411,0.1048,4786.2,4786.1,2.34542222]
[1756016268382,0.1048,4786.2,4786.1,10.5045612]
[1756016269624,3.6128,4786.6,4786.5,2.08920923]
[1756016269811,0.1048,4786.6,4786.5,2.08920923]
[1756016269986,0.002,4786.8,4786.7,2.08912194]
[1756016270188,0.1068,4786.8,4786.7,2.08912194]
[1756016270382,0.1068,4786.8,4786.7,3.32286896]
[1756016271236,0.1068,4786.8,4786.7,1.23374702]
[1756016271521,0.1068,4786.8,4786.7,3.32286896]
[1756016273021,0.1068,4786.8,4786.7,1.23374702]
[1756016273197,0.1068,4786.8,4786.0,0.1048]
[1756016273399,0.1068,4786.8,4786.4,2.08921206]
[1756016274114,0.1068,4786.8,4786.4,2.08923074]
[1756016274422,0.1068,4786.8,4786.5,2.08920261]
[1756016274802,0.297,4786.6,4786.1,0.041]
[1756016275029,0.1048,4786.3,4786.1,0.041]
[1756016275229,3.506,4786.2,4786.1,0.041]
[1756016275727,3.803,4786.2,4786.1,0.041]
[1756016275929,4.2426,4786.2,4786.1,0.041]
[1756016280730,5.8496,4786.2,4786.1,0.041]
[1756016284509,5.8496,4786.2,4785.6,0.001]
[1756016284510,2.08938384,4786.1,4785.6,0.001]
[1756016284714,3.0,4785.8,4785.6,0.001]
[1756016284913,17.69336336,4785.7,4785.6,0.001]
[1756016285110,18.13296336,4785.7,4785.6,0.001]
[1756016285316,19.5980046,4785.7,4785.6,0.001]
[1756016286434,19.92506703,4785.7,4785.6,0.001]
[1756016288423,19.73026332,4785.7,4785.6,0.001]
[1756016289327,19.81404032,4785.7,4785.6,0.001]
[1756016291033,19.48697789,4785.7,4785.6,0.001]
[1756016291849,20.81502466,4785.7,4785.6,0.001]
[1756016292435,20.5357976,4785.7,4785.6,0.001]
[1756016292840,21.60847902,4785.7,4785.6,0.001]
[1756016294047,21.9355776,4785.7,4785.6,0.001]
[1756016295012,20.86289618,4785.7,4785.6,1e-08]
[1756016295319,3.66,4785.3,4785.1,0.041]
[1756016295516,26.25277219,4785.2,4785.1,0.041]
[1756016295717,26.69237219,4785.2,4785.1,0.041]
[1756016295912,25.9333324,4785.2,4785.1,0.041]
[1756016296216,26.55743462,4785.2,4785.1,0.041]
[1756016298709,33.6474346,4785.2,4785.1,0.041]
[1756016299534,33.84138037,4785.2,4785.1,1e-08]
[1756016299736,33.84138037,4785.2,4784.6,0.001]
[1756016299737,0.66,4784.9,4784.6,0.001]
[1756016299946,19.28708805,4784.9,4784.6,0.001]
[1756016300246,20.20165025,4784.9,4784.6,0.001]
[1756016303150,20.52878744,4784.9,4784.6,0.001]
[1756016303609,20.80665805,4784.9,4784.6,0.001]
[1756016304014,21.1407764,4784.9,4784.6,0.001]
[1756016305042,21.67061881,4784.9,4784.6,0.001]
[1756016305932,21.67072759,4784.9,4784.6,0.001]
[1756016307034,21.67071393,4784.9,4784.6,0.001]
[1756016307231,22.41814073,4784.9,4784.6,0.001]
[1756016308645,22.41514073,4784.9,4784.6,0.001]
[1756016309260,21.66771393,4784.9,4784.6,0.001]
[1756016310337,21.27946039,4784.9,4784.6,0.001]
[1756016310542,21.66795592,4784.9,4784.6,0.001]
[1756016311972,21.47370218,4784.9,4784.6,0.001]
[1756016313257,22.59673661,4784.9,4784.6,0.001]
[1756016313655,22.40249482,4784.9,4784.6,0.001]
[1756016313980,22.59695932,4784.9,4784.6,0.001]
[1756016314179,21.47392489,4784.9,4784.6,0.001]
[1756016315152,2.08999519,4784.7,4784.6,0.001]
[1756016315348,12.12109035,4784.7,4784.6,0.001]
[1756016315553,12.0063465,4784.7,4784.6,0.001]
[1756016315783,13.00433294,4784.7,4784.6,0.001]
[1756016316668,2.09021361,4784.2,4784.1,0.04]
[1756016316869,18.66261709,4784.2,4784.1,0.04]
[1756016317172,20.57614077,4784.2,4784.1,0.1376]
[1756016317373,21.74802854,4784.2,4784.1,0.04]
[1756016317983,23.15590522,4784.2,4784.1,1e-08]
[1756016318170,23.15590522,4784.2,4783.8,0.02]
[1756016318171,2.09034469,4783.9,4783.8,1e-08]
[1756016318375,25.54843059,4783.9,4783.8,1e-08]
[1756016318590,26.01413059,4783.9,4783.8,1e-08]
[1756016318795,26.09795059,4783.9,4783.8,1e-08]
[1756016319086,28.23286078,4783.9,4783.8,1e-08]
[1756016319388,29.35406683,4783.9,4783.8,1e-08]
[1756016319746,28.23286078,4783.9,4783.8,1e-08]
[1756016320365,28.23322336,4783.9,4783.8,1e-08]
[1756016320967,28.23322169,4783.9,4783.8,1e-08]
[1756016321182,29.48922169,4783.9,4783.8,1e-08]
[1756016321383,2.75065061,4783.2,4783.1,0.04]
[1756016321584,25.47142078,4783.2,4783.1,0.04]
[1756016321865,26.04192078,4783.2,4783.1,0.04]
[1756016322683,26.12575178,4783.2,4783.1,0.04]
[1756016324810,27.57527721,4783.2,4783.1,0.04]
[1756016326807,27.7360939,4783.2,4783.1,0.04]
[1756016330315,27.73599748,4783.2,4783.1,0.04]
[1756016331014,27.44079608,4783.2,4783.1,0.04]
[1756016331211,27.73749608,4783.2,4783.1,0.04]
[1756016333314,26.61522775,4783.2,4783.1,0.04]
[1756016334117,27.44079608,4783.2,4783.1,0.04]
[1756016334416,26.61522775,4783.2,4783.1,0.04]
[1756016334600,26.61522775,4783.2,4783.1,0.041]
[1756016335394,26.9493461,4783.2,4783.1,0.041]
[1756016335627,28.40736503,4783.2,4783.1,0.041]
[1756016336096,29.66336503,4783.2,4783.1,0.041]
[1756016338322,28.5410967,4783.2,4783.1,0.041]
[1756016338846,2.75078174,4782.9,4782.8,0.02]
[1756016338985,19.00618817,4782.9,4782.8,0.02]
[1756016339188,19.89883877,4782.9,4782.8,0.02]
[1756016339605,19.98267877,4782.9,4782.8,0.02]
[1756016340201,19.78795118,4782.9,4782.8,0.02]
[1756016340493,19.98275817,4782.9,4782.8,0.02]
[1756016340724,19.98277297,4782.9,4782.8,0.02]
[1756016342013,21.23877297,4782.9,4782.8,0.02]
[1756016342211,7.57283399,4782.9,4782.8,0.02]
[1756016342404,18.56310402,4782.9,4782.8,0.1176]
[1756016342615,9.74396504,4782.9,4782.8,0.1176]
[1756016342816,17.91115145,4782.9,4782.8,0.1176]
[1756016343339,9.75201247,4782.9,4782.8,0.1176]
[1756016343642,1.72049988,4782.9,4782.8,0.1786]
[1756016343846,4.0179265,4782.9,4782.8,0.1786]
[1756016344026,4.46640894,4782.9,4782.8,0.1786]
[1756016344607,7.46640894,4782.9,4782.8,0.1786]
[1756016347248,9.55719068,4782.9,4782.8,0.1176]
[1756016347546,11.72235659,4782.9,4782.8,0.02]
[1756016347847,11.83095639,4782.9,4782.8,0.02]
[1756016348861,11.30857313,4782.9,4782.8,0.02]
[1756016349049,11.50369202,4782.9,4782.8,0.02]
[1756016350226,12.62563505,4782.9,4782.8,0.02]
[1756016350426,12.74273136,4782.9,4782.8,0.02]
[1756016350642,11.62078833,4782.9,4782.8,0.02]
[1756016352354,11.94808273,4782.9,4782.8,0.02]
[1756016352534,11.94808273,4782.9,4782.8,0.021]
[1756016353869,19.03808271,4782.9,4782.8,0.021]
[1756016356934,20.29408271,4782.9,4782.8,0.021]
[1756016358745,2.75108778,4782.2,4782.1,0.04]
[1756016358939,20.06729542,4782.2,4782.1,0.04]
[1756016359263,20.98337786,4782.2,4782.1,0.04]
[1756016359476,21.71520104,4782.2,4782.1,0.04]
[1756016359763,21.41170104,4782.2,4782.1,0.04]
[1756016360857,28.03410102,4782.2,4782.1,0.04]
[1756016361424,33.06110102,4782.2,4782.1,0.04]
[1756016361846,33.52870102,4782.2,4782.1,0.04]
[1756016362160,33.33360246,4782.2,4782.1,0.04]
[1756016362470,33.83222084,4782.2,4782.1,0.04]
[1756016362754,33.52872084,4782.2,4782.1,0.04]
[1756016363457,33.83222084,4782.2,4782.1,0.04]
[1756016363872,33.52872084,4782.2,4782.1,0.04]
[1756016365643,33.83222084,4782.2,4782.1,0.04]
[1756016366039,33.83218556,4782.2,4782.1,0.04]
[1756016368847,33.50482415,4782.2,4782.1,0.04]
[1756016370850,26.41482417,4782.2,4782.1,0.04]
[1756016372169,26.21978146,4782.2,4782.1,0.04]
[1756016372373,26.41480633,4782.2,4782.1,0.04]
[1756016375184,26.74213725,4782.2,4782.1,0.04]
[1756016375390,25.99296499,4782.2,4782.1,0.04]
[1756016378755,25.99318701,4782.2,4782.1,0.04]
[1756016379489,25.993187,4782.2,4782.1,0.04]
[1756016380412,27.11694539,4782.2,4782.1,0.04]
[1756016380573,26.34584539,4782.2,4782.1,0.04]
[1756016381076,26.81344539,4782.2,4782.1,0.04]
[1756016382475,26.93065369,4782.2,4782.1,0.04]
[1756016383405,2.09121897,4781.9,4781.8,0.01]
[1756016383605,24.58288725,4781.9,4781.8,0.1076]
[1756016384486,25.05048725,4781.9,4781.8,0.01]
[1756016384699,24.69048725,4781.9,4781.8,0.01]
[1756016385510,24.69063455,4781.9,4781.8,0.01]
[1756016388687,24.49524037,4781.9,4781.8,0.01]
[1756016388891,25.13472233,4781.9,4781.8,0.01]